fUSD/lending_fUSD_20260517
["ID","MTS","AMOUNT","RATE_DAILY","PERIOD"]
[422472597,1778973040000,-500.0,0.00025,2]
[422472598,1778973040000,-500.0,0.00025,2]
[422472595,1778973040000,-500.0,0.00025,2]
[422472599,1778973040000,-500.0,0.00025,2]
[422472601,1778973040000,-500.0,0.00025,2]
[422472602,1778973040000,-500.0,0.00025,2]
[422472603,1778973040000,-500.0,0.00025,2]
[422472619,1778973040000,-223.445752,0.00025,2]
[422472604,1778973040000,-500.0,0.00025,2]
[422472606,1778973040000,-500.0,0.00025,2]
[422472607,1778973040000,-500.0,0.00025,2]
[422472608,1778973040000,-500.0,0.00025,2]
[422472611,1778973040000,-627.669364,0.00025,2]
[422472609,1778973040000,-500.0,0.00025,2]
[422472610,1778973040000,-170.940753,0.00025,2]
[422472612,1778973040000,-627.669364,0.00025,2]
[422472613,1778973040000,-627.669364,0.00025,2]
[422472615,1778973040000,-627.669364,0.00025,2]
[422472616,1778973040000,-184.204153,0.00025,2]
[422472614,1778973040000,-184.204153,0.00025,2]
[422472617,1778973040000,-184.204153,0.00025,2]
[422472620,1778973040000,-223.445752,0.00025,2]
[422472605,1778973040000,-500.0,0.00025,2]
[422472650,1778973040000,-1747.26,0.00025786,2]
[422472596,1778973040000,-500.0,0.00025,2]
[422472655,1778973040000,-27304.73386755,0.00026,10]
[422472689,1778973040000,-159.28,0.00027397,30]
[422472691,1778973040000,-160.0,0.00027397,2]
[422472690,1778973040000,-1500.0,0.00027397,2]
[422472688,1778973040000,-8236.03827336,0.0002739,2]
[422472692,1778973040000,-199.47,0.00027397,2]
[422472693,1778973040000,-239.858007,0.00027397,2]
[422472695,1778973040000,-239.858007,0.00027397,2]
[422472696,1778973040000,-239.858007,0.00027397,2]
[422472697,1778973040000,-1699.029253,0.00027397,2]
[422472694,1778973040000,-239.858007,0.00027397,2]
[422472699,1778973040000,-1699.029253,0.00027397,2]
[422472701,1778973040000,-151.0,0.00027397,2]
[422472700,1778973040000,-1699.029253,0.00027397,2]
[422472698,1778973040000,-1699.029253,0.00027397,2]
[422472702,1778973040000,-463.691199,0.00027397,2]
[422472703,1778973040000,-463.691199,0.00027397,2]
[422472705,1778973040000,-463.691199,0.00027397,2]
[422472704,1778973040000,-463.691199,0.00027397,2]
[422472706,1778973040000,-300.0,0.00027397,2]
[422472708,1778973040000,-9003.38,0.00027397,10]
[422472718,1778973040000,-1242.749,0.00028247,2]
[422472707,1778973040000,-10804.05,0.00027397,10]
[422472710,1778973040000,-215.65,0.000274,7]
[422472709,1778973040000,-283.06,0.000274,7]
[422472712,1778973040000,-215.03962261,0.000274,10]
[422472711,1778973040000,-924.61,0.000274,14]
[422472717,1778973040000,-158.87,0.00028097,2]
[422472716,1778973040000,-159.28,0.00028082,30]
[422472653,1778973040000,-215.03962261,0.000258,7]
[422472687,1778973040000,-4169.01663758,0.0002739,2]
[422472686,1778973040000,-8711.0,0.000273,2]
[422472714,1778973040000,-500.0,0.000278,7]
[422472682,1778973040000,-150.0,0.00027123,2]
[422472685,1778973040000,-158.87,0.00027253,2]
[422472656,1778973040000,-400.29843382,0.00026,20]
[422472658,1778973040000,-2000.0,0.0002613,2]
[422472659,1778973040000,-158.87,0.00026409,2]
[422472660,1778973040000,-216.0,0.00026517,2]
[422472654,1778973040000,-208.67333663,0.000259,2]
[422472663,1778973040000,-1048.93806121,0.00027,2]
[422472662,1778973040000,-250.0,0.00027,2]
[422472665,1778973040000,-2572.707196,0.0002701,2]
[422472661,1778973040000,-2000.0,0.00027,2]
[422472664,1778973040000,-530.0,0.00027,2]
[422472666,1778973040000,-150.0,0.00027123,2]
[422472668,1778973040000,-150.0,0.00027123,2]
[422472670,1778973040000,-150.0,0.00027123,2]
[422472657,1778973040000,-215.03962261,0.00026,10]
[422472671,1778973040000,-274.34450256,0.00027123,2]
[422472672,1778973040000,-150.0,0.00027123,2]
[422472681,1778973040000,-242.6683652,0.00027123,2]
[422472680,1778973040000,-553.49084739,0.00027123,2]
[422472675,1778973040000,-500.0,0.00027123,2]
[422472679,1778973040000,-150.0,0.00027123,2]
[422472676,1778973040000,-500.0,0.00027123,2]
[422472683,1778973040000,-150.0,0.00027123,2]
[422472678,1778973040000,-500.0,0.00027123,2]
[422472667,1778973040000,-241.09524551,0.00027123,2]
[422472677,1778973040000,-500.0,0.00027123,2]
[422472669,1778973040000,-150.0,0.00027123,2]
[422472684,1778973040000,-299.41353446,0.00027123,2]
[422472673,1778973040000,-176.00420823,0.00027123,2]
[422472674,1778973040000,-500.0,0.00027123,2]
[422472761,1778973041000,-202.75,0.00028693,30]
[422472752,1778973041000,-151.0,0.00028667,2]
[422472750,1778973041000,-150.0,0.00028667,2]
[422472751,1778973041000,-150.823,0.00028667,2]
[422472759,1778973041000,-285.92,0.00028693,30]
[422472753,1778973041000,-1354.0,0.00028667,2]
[422472756,1778973041000,-1270.0,0.00028667,2]
[422472755,1778973041000,-625.0,0.00028667,2]
[422472757,1778973041000,-203.14,0.00028693,30]
[422472758,1778973041000,-1650.78,0.00028693,30]
[422472749,1778973041000,-249.67,0.00028667,2]
[422472754,1778973041000,-3543.0,0.00028667,2]
[422472767,1778973041000,-1650.78,0.00028725,2]
[422472760,1778973041000,-799.19,0.00028693,30]
[422472763,1778973041000,-798.61,0.00028693,30]
[422472762,1778973041000,-1649.51,0.00028693,30]
[422472766,1778973041000,-203.14,0.00028725,2]
[422472765,1778973041000,-229.46,0.000287,7]
[422472768,1778973041000,-285.92,0.00028725,2]
[422472769,1778973041000,-799.19,0.00028725,2]
[422472770,1778973041000,-202.75,0.00028725,2]
[422472771,1778973041000,-1649.51,0.00028725,2]
[422472772,1778973041000,-798.61,0.00028725,2]
[422472747,1778973041000,-250.0,0.00028667,2]
[422472774,1778973041000,-203.14,0.00028756,7]
[422472764,1778973041000,-285.69,0.00028693,30]
[422472748,1778973041000,-165.938,0.00028667,2]
[422472733,1778973041000,-203.14,0.00028661,7]
[422472745,1778973041000,-192.979,0.00028667,2]
[422472775,1778973041000,-1650.78,0.00028756,7]
[422472719,1778973041000,-6054.0,0.00028247,2]
[422472720,1778973041000,-930.0,0.00028247,2]
[422472721,1778973041000,-203.14,0.0002863,2]
[422472722,1778973041000,-1650.78,0.0002863,2]
[422472724,1778973041000,-799.19,0.0002863,2]
[422472725,1778973041000,-202.75,0.0002863,2]
[422472726,1778973041000,-1649.51,0.0002863,2]
[422472729,1778973041000,-2797.75145207,0.00028659,2]
[422472727,1778973041000,-798.61,0.0002863,2]
[422472723,1778973041000,-285.92,0.0002863,2]
[422472728,1778973041000,-285.69,0.0002863,2]
[422472746,1778973041000,-150.224,0.00028667,2]
[422472731,1778973041000,-164.85598906,0.00028659,2]
[422472732,1778973041000,-2832.39793651,0.00028659,2]
[422472735,1778973041000,-285.92,0.00028661,7]
[422472734,1778973041000,-1650.78,0.00028661,7]
[422472737,1778973041000,-202.75,0.00028661,7]
[422472736,1778973041000,-799.19,0.00028661,7]
[422472740,1778973041000,-285.69,0.00028661,7]
[422472739,1778973041000,-798.61,0.00028661,7]
[422472738,1778973041000,-1649.51,0.00028661,7]
[422472742,1778973041000,-150.0,0.00028667,2]
[422472741,1778973041000,-150.0,0.00028667,2]
[422472743,1778973041000,-250.0,0.00028667,2]
[422472744,1778973041000,-230.001,0.00028667,2]
[422472730,1778973041000,-5863.59398004,0.00028659,2]
[422472773,1778973041000,-285.69,0.00028725,2]
[422472782,1778973041000,-159.28,0.00028767,30]
[422472776,1778973041000,-285.92,0.00028756,7]
[422472810,1778973041000,-285.92,0.00028883,30]
[422472808,1778973041000,-203.14,0.00028883,30]
[422472811,1778973041000,-799.19,0.00028883,30]
[422472813,1778973041000,-1649.51,0.00028883,30]
[422472812,1778973041000,-202.75,0.00028883,30]
[422472820,1778973041000,-202.75,0.00028915,2]
[422472818,1778973041000,-285.92,0.00028915,2]
[422472817,1778973041000,-1650.78,0.00028915,2]
[422472816,1778973041000,-203.14,0.00028915,2]
[422472814,1778973041000,-798.61,0.00028883,30]
[422472821,1778973041000,-1649.51,0.00028915,2]
[422472815,1778973041000,-285.69,0.00028883,30]
[422472809,1778973041000,-1650.78,0.00028883,30]
[422472819,1778973041000,-799.19,0.00028915,2]
[422472822,1778973041000,-798.61,0.00028915,2]
[422472824,1778973041000,-203.14,0.00028947,7]
[422472826,1778973041000,-285.92,0.00028947,7]
[422472825,1778973041000,-1650.78,0.00028947,7]
[422472828,1778973041000,-202.75,0.00028947,7]
[422472827,1778973041000,-799.19,0.00028947,7]
[422472831,1778973041000,-203.14,0.00028979,30]
[422472834,1778973041000,-799.19,0.00028979,30]
[422472830,1778973041000,-798.61,0.00028947,7]
[422472829,1778973041000,-1649.51,0.00028947,7]
[422472777,1778973041000,-799.19,0.00028756,7]
[422472833,1778973041000,-285.92,0.00028979,30]
[422472823,1778973041000,-158.87,0.00028941,2]
[422472805,1778973041000,-1649.51,0.00028852,7]
[422472832,1778973041000,-1650.78,0.00028979,30]
[422472802,1778973041000,-285.92,0.00028852,7]
[422472807,1778973041000,-285.69,0.00028852,7]
[422472779,1778973041000,-1649.51,0.00028756,7]
[422472781,1778973041000,-285.69,0.00028756,7]
[422472780,1778973041000,-798.61,0.00028756,7]
[422472783,1778973041000,-151.0,0.00028767,7]
[422472784,1778973041000,-203.14,0.00028788,30]
[422472786,1778973041000,-285.92,0.00028788,30]
[422472785,1778973041000,-1650.78,0.00028788,30]
[422472787,1778973041000,-799.19,0.00028788,30]
[422472789,1778973041000,-1649.51,0.00028788,30]
[422472788,1778973041000,-202.75,0.00028788,30]
[422472790,1778973041000,-798.61,0.00028788,30]
[422472793,1778973041000,-1650.78,0.0002882,2]
[422472778,1778973041000,-202.75,0.00028756,7]
[422472794,1778973041000,-285.92,0.0002882,2]
[422472803,1778973041000,-799.19,0.00028852,7]
[422472806,1778973041000,-798.61,0.00028852,7]
[422472804,1778973041000,-202.75,0.00028852,7]
[422472791,1778973041000,-285.69,0.00028788,30]
[422472801,1778973041000,-1650.78,0.00028852,7]
[422472800,1778973041000,-203.14,0.00028852,7]
[422472799,1778973041000,-285.69,0.0002882,2]
[422472797,1778973041000,-1649.51,0.0002882,2]
[422472796,1778973041000,-202.75,0.0002882,2]
[422472795,1778973041000,-799.19,0.0002882,2]
[422472792,1778973041000,-203.14,0.0002882,2]
[422472798,1778973041000,-798.61,0.0002882,2]
[422472872,1778973042000,-202.75,0.00029169,30]
[422472871,1778973042000,-799.19,0.00029169,30]
[422472869,1778973042000,-1650.78,0.00029169,30]
[422472868,1778973042000,-203.14,0.00029169,30]
[422472863,1778973042000,-1650.78,0.00029137,7]
[422472867,1778973042000,-1649.51,0.00029137,7]
[422472866,1778973042000,-202.75,0.00029137,7]
[422472865,1778973042000,-799.19,0.00029137,7]
[422472864,1778973042000,-285.92,0.00029137,7]
[422472870,1778973042000,-285.92,0.00029169,30]
[422472874,1778973042000,-203.14,0.00029201,2]
[422472877,1778973042000,-799.19,0.00029201,2]
[422472873,1778973042000,-1649.51,0.00029169,30]
[422472876,1778973042000,-285.92,0.00029201,2]
[422472878,1778973042000,-202.75,0.00029201,2]
[422472881,1778973042000,-1650.97,0.00029232,7]
[422472879,1778973042000,-1649.51,0.00029201,2]
[422472880,1778973042000,-203.25,0.00029232,7]
[422472882,1778973042000,-286.09,0.00029232,7]
[422472884,1778973042000,-202.77,0.00029232,7]
[422472885,1778973042000,-1649.58,0.00029232,7]
[422472883,1778973042000,-799.19,0.00029232,7]
[422472861,1778973042000,-1649.51,0.00029105,2]
[422472875,1778973042000,-1650.78,0.00029201,2]
[422472862,1778973042000,-203.14,0.00029137,7]
[422472847,1778973042000,-799.19,0.00029042,7]
[422472855,1778973042000,-1649.51,0.00029074,30]
[422472836,1778973042000,-1649.51,0.00028979,30]
[422472835,1778973042000,-202.75,0.00028979,30]
[422472840,1778973042000,-285.92,0.0002901,2]
[422472839,1778973042000,-1650.78,0.0002901,2]
[422472837,1778973042000,-798.61,0.00028979,30]
[422472838,1778973042000,-203.14,0.0002901,2]
[422472842,1778973042000,-202.75,0.0002901,2]
[422472841,1778973042000,-799.19,0.0002901,2]
[422472844,1778973042000,-203.14,0.00029042,7]
[422472846,1778973042000,-285.92,0.00029042,7]
[422472843,1778973042000,-1649.51,0.0002901,2]
[422472860,1778973042000,-202.75,0.00029105,2]
[422472845,1778973042000,-1650.78,0.00029042,7]
[422472850,1778973042000,-203.14,0.00029074,30]
[422472851,1778973042000,-1650.78,0.00029074,30]
[422472849,1778973042000,-1649.51,0.00029042,7]
[422472852,1778973042000,-285.92,0.00029074,30]
[422472854,1778973042000,-202.75,0.00029074,30]
[422472853,1778973042000,-799.19,0.00029074,30]
[422472887,1778973042000,-171.08455722,0.00029272,2]
[422472856,1778973042000,-203.14,0.00029105,2]
[422472857,1778973042000,-1650.78,0.00029105,2]
[422472858,1778973042000,-285.92,0.00029105,2]
[422472859,1778973042000,-799.19,0.00029105,2]
[422472848,1778973042000,-202.75,0.00029042,7]
[422472886,1778973042000,-173.62673013,0.00029272,7]
[422472924,1778973042000,-200.0,0.00031096,2]
[422472889,1778973042000,-189.56,0.00029276,2]
[422472919,1778973042000,-342.16911444,0.00030635,2]
[422472923,1778973042000,-150.0,0.00031011,2]
[422472925,1778973042000,-153.0,0.00031184,30]
[422472922,1778973042000,-594.31,0.0003095,120]
[422472921,1778973042000,-159.28,0.00030822,30]
[422472926,1778973042000,-240.0,0.00031184,30]
[422472928,1778973042000,-151.0,0.00031184,30]
[422472929,1778973042000,-602.0,0.00031184,30]
[422472927,1778973042000,-196.0,0.00031184,30]
[422472931,1778973042000,-154.0,0.00031184,30]
[422472930,1778973042000,-157.0,0.00031184,30]
[422472933,1778973042000,-151.0,0.00031191,30]
[422472932,1778973042000,-162.0,0.00031191,30]
[422472935,1778973042000,-160.0,0.000312,7]
[422472934,1778973042000,-160.0,0.000312,7]
[422472937,1778973042000,-6054.0,0.00031247,2]
[422472936,1778973042000,-1223.0,0.00031247,2]
[422472938,1778973042000,-930.0,0.00031247,2]
[422472940,1778973042000,-229.46,0.000314,7]
[422472939,1778973042000,-443.0,0.0003134,2]
[422472942,1778973042000,-159.28,0.00031507,30]
[422472941,1778973042000,-1000.0,0.000315,7]
[422472888,1778973042000,-166.93813199,0.00029272,7]
[422472920,1778973042000,-333.87626397,0.00030635,7]
[422472916,1778973042000,-1801.62,0.000302,2]
[422472943,1778973042000,-160.82834076,0.00031543,7]
[422472914,1778973042000,-151.0,0.00030191,30]
[422472918,1778973042000,-347.25346027,0.00030635,7]
[422472891,1778973042000,-150.0,0.00029534,2]
[422472892,1778973042000,-158.87,0.00029784,2]
[422472894,1778973042000,-215.65,0.000298,7]
[422472893,1778973042000,-283.06,0.000298,7]
[422472896,1778973042000,-1013.45003466,0.00029997,7]
[422472895,1778973042000,-924.61,0.000298,14]
[422472898,1778973042000,-215.03962261,0.0003,7]
[422472900,1778973042000,-392.46688782,0.00030129,10]
[422472899,1778973042000,-300.0,0.00030129,10]
[422472897,1778973042000,-21897.96645494,0.0003,5]
[422472901,1778973042000,-907149.05851783,0.0003013,7]
[422472890,1778973042000,-159.28,0.00029452,30]
[422472904,1778973042000,-159.28,0.00030137,30]
[422472903,1778973042000,-160.0,0.00030137,8]
[422472906,1778973042000,-240.0,0.00030184,30]
[422472905,1778973042000,-153.0,0.00030184,30]
[422472908,1778973042000,-151.0,0.00030184,30]
[422472913,1778973042000,-160.0,0.00030191,30]
[422472907,1778973042000,-196.0,0.00030184,30]
[422472909,1778973042000,-602.0,0.00030184,30]
[422472911,1778973042000,-157.0,0.00030184,30]
[422472912,1778973042000,-154.0,0.00030184,30]
[422472917,1778973042000,-361.9449132,0.0003039,2]
[422472902,1778973042000,-200.0,0.00030137,2]
[422472983,1778973043000,-234.50050541,0.00032148,7]
[422472980,1778973043000,-153.36305943,0.00032148,7]
[422472981,1778973043000,-200.49155442,0.00032148,7]
[422472974,1778973043000,-547.0,0.00032055,2]
[422472979,1778973043000,-216.82287425,0.00032148,7]
[422472977,1778973043000,-694.50692054,0.00032148,7]
[422472975,1778973043000,-321.65668151,0.00032148,7]
[422472987,1778973043000,-301.87280062,0.00032148,7]
[422472978,1778973043000,-150.19269633,0.00032148,7]
[422472986,1778973043000,-399.58588233,0.00032148,7]
[422472990,1778973043000,-154.60161138,0.00032156,7]
[422472984,1778973043000,-196.7515714,0.00032148,7]
[422472988,1778973043000,-684.33822889,0.00032148,2]
[422472985,1778973043000,-194.78231694,0.00032148,7]
[422472976,1778973043000,-489.67240161,0.00032148,7]
[422472991,1778973043000,-155.67641622,0.00032163,7]
[422472992,1778973043000,-238.67561012,0.00032163,7]
[422472989,1778973043000,-667.75252794,0.00032148,7]
[422472993,1778973043000,-238.22734491,0.00032163,7]
[422472995,1778973043000,-240.0,0.00032184,30]
[422472994,1778973043000,-153.0,0.00032184,30]
[422472996,1778973043000,-196.0,0.00032184,30]
[422472982,1778973043000,-197.4335286,0.00032148,7]
[422472972,1778973043000,-924.61,0.00032,14]
[422472965,1778973043000,-1354.0,0.00031667,2]
[422472969,1778973043000,-690.0,0.00031934,2]
[422472997,1778973043000,-151.0,0.00032184,30]
[422472945,1778973043000,-520.8801904,0.00031543,7]
[422472944,1778973043000,-244.83620081,0.00031543,7]
[422472947,1778973043000,-150.93640031,0.00031543,7]
[422472946,1778973043000,-199.79294116,0.00031543,7]
[422472949,1778973043000,-500.81439596,0.00031543,7]
[422472948,1778973043000,-513.25367166,0.00031543,2]
[422472950,1778973043000,-313.48475589,0.00031567,2]
[422472951,1778973043000,-555.0,0.00031612,2]
[422472953,1778973043000,-150.0,0.00031667,2]
[422472952,1778973043000,-150.0,0.00031667,2]
[422472955,1778973043000,-150.0,0.00031667,2]
[422472954,1778973043000,-150.0,0.00031667,2]
[422472961,1778973043000,-150.0,0.00031667,2]
[422472958,1778973043000,-150.0,0.00031667,2]
[422472956,1778973043000,-150.0,0.00031667,2]
[422472963,1778973043000,-150.0,0.00031667,2]
[422472964,1778973043000,-150.0,0.00031667,2]
[422472966,1778973043000,-3543.0,0.00031667,2]
[422472968,1778973043000,-1270.0,0.00031667,2]
[422472967,1778973043000,-625.0,0.00031667,2]
[422472970,1778973043000,-2000.0,0.00031937,120]
[422472971,1778973043000,-215.65,0.00032,7]
[422472973,1778973043000,-200.0,0.00032055,2]
[422473000,1778973043000,-154.0,0.00032184,30]
[422472957,1778973043000,-150.0,0.00031667,2]
[422472998,1778973043000,-602.0,0.00032184,30]
[422473027,1778973043000,-240.0,0.00033184,30]
[422473031,1778973043000,-157.0,0.00033184,30]
[422473029,1778973043000,-151.0,0.00033184,30]
[422473030,1778973043000,-602.0,0.00033184,30]
[422473032,1778973043000,-154.0,0.00033184,30]
[422473034,1778973043000,-160.0,0.000332,16]
[422473035,1778973043000,-159.28,0.00033562,30]
[422473033,1778973043000,-151.0,0.00033191,30]
[422473036,1778973043000,-154.13881602,0.00033634,78]
[422473043,1778973043000,-600.0,0.00033854,2]
[422473037,1778973043000,-1041.76038081,0.00033662,7]
[422473038,1778973043000,-608.0,0.00033671,2]
[422473042,1778973043000,-600.0,0.00033854,2]
[422473040,1778973043000,-594.31,0.00033764,120]
[422473039,1778973043000,-500.0,0.00033726,2]
[422473041,1778973043000,-600.0,0.00033854,2]
[422473045,1778973043000,-600.0,0.00033854,2]
[422473044,1778973043000,-600.0,0.00033854,2]
[422473048,1778973043000,-600.0,0.00033854,2]
[422473047,1778973043000,-600.0,0.00033854,2]
[422473050,1778973043000,-321.0,0.00033854,2]
[422473049,1778973043000,-600.0,0.00033854,2]
[422473051,1778973043000,-1000.0,0.00033997,65]
[422473026,1778973043000,-153.0,0.00033184,30]
[422473028,1778973043000,-196.0,0.00033184,30]
[422473046,1778973043000,-600.0,0.00033854,2]
[422473025,1778973043000,-1000.0,0.0003301,8]
[422473024,1778973043000,-571.588399,0.00033,14]
[422473002,1778973043000,-159.28,0.00032192,30]
[422473003,1778973043000,-249.36,0.000322,12]
[422473001,1778973043000,-151.0,0.00032191,30]
[422473004,1778973043000,-160.0,0.000322,12]
[422473006,1778973043000,-1096.74405951,0.00032526,20]
[422473010,1778973043000,-1067.75920233,0.00032526,20]
[422473005,1778973043000,-1007.38407556,0.00032526,20]
[422473007,1778973043000,-1076.08325014,0.00032526,20]
[422473009,1778973043000,-1004.681064,0.00032526,20]
[422473008,1778973043000,-1084.35713877,0.00032526,20]
[422473011,1778973043000,-1020.34912756,0.00032526,20]
[422472999,1778973043000,-157.0,0.00032184,30]
[422473012,1778973043000,-1107.13204353,0.00032526,20]
[422473014,1778973043000,-152.0,0.0003262,7]
[422473022,1778973043000,-159.28,0.00032877,30]
[422473017,1778973043000,-834.69065993,0.00032754,7]
[422473018,1778973043000,-448.43651,0.00032877,7]
[422473020,1778973043000,-448.43651,0.00032877,7]
[422473019,1778973043000,-448.43651,0.00032877,7]
[422473016,1778973043000,-855.42278611,0.00032754,2]
[422473015,1778973043000,-868.13365067,0.00032754,7]
[422473013,1778973043000,-150.0,0.00032562,2]
[422473021,1778973043000,-448.43651,0.00032877,7]
[422473023,1778973043000,-164.89,0.00032883,120]
[422473074,1778973044000,-150.0,0.00034667,2]
[422473082,1778973044000,-625.0,0.00034667,2]
[422473071,1778973044000,-500.0,0.00034325,3]
[422473077,1778973044000,-150.0,0.00034667,2]
[422473076,1778973044000,-150.0,0.00034667,2]
[422473078,1778973044000,-150.0,0.00034667,2]
[422473081,1778973044000,-1592.404,0.00034667,2]
[422473086,1778973044000,-1500.0,0.00034795,2]
[422473083,1778973044000,-1270.0,0.00034667,2]
[422473084,1778973044000,-229.46,0.000347,7]
[422473085,1778973044000,-293.78824387,0.00034769,2]
[422473075,1778973044000,-150.0,0.00034667,2]
[422473088,1778973044000,-200.0,0.00034796,2]
[422473087,1778973044000,-200.0,0.00034796,2]
[422473089,1778973044000,-200.0,0.00034796,2]
[422473091,1778973044000,-200.0,0.00034796,2]
[422473080,1778973044000,-1354.0,0.00034667,2]
[422473073,1778973044000,-150.0,0.00034667,2]
[422473065,1778973044000,-160.0,0.000342,21]
[422473069,1778973044000,-930.0,0.00034247,2]
[422473095,1778973044000,-150.0,0.0003484,120]
[422473052,1778973044000,-215.65,0.000341,30]
[422473053,1778973044000,-924.61,0.000341,14]
[422473054,1778973044000,-153.0,0.00034184,30]
[422473056,1778973044000,-196.0,0.00034184,30]
[422473055,1778973044000,-240.0,0.00034184,30]
[422473057,1778973044000,-151.0,0.00034184,30]
[422473058,1778973044000,-602.0,0.00034184,30]
[422473059,1778973044000,-157.0,0.00034184,30]
[422473062,1778973044000,-151.13147767,0.00034191,30]
[422473063,1778973044000,-1000.0,0.00034197,21]
[422473061,1778973044000,-150.0,0.0003419,2]
[422473064,1778973044000,-1000.0,0.00034197,9]
[422473066,1778973044000,-159.28,0.00034247,30]
[422473067,1778973044000,-1223.0,0.00034247,2]
[422473068,1778973044000,-6054.0,0.00034247,2]
[422473070,1778973044000,-500.0,0.00034325,3]
[422473072,1778973044000,-5000.0,0.000345,14]
[422473060,1778973044000,-154.0,0.00034184,30]
[422473096,1778973044000,-254.0,0.0003484,120]
[422473094,1778973044000,-217.0,0.00034796,2]
[422473117,1778973044000,-798.61,0.00029105,2]
[422473115,1778973044000,-798.61,0.00029074,30]
[422473116,1778973044000,-285.69,0.00029074,30]
[422473120,1778973044000,-285.69,0.00029137,7]
[422473119,1778973044000,-798.61,0.00029137,7]
[422473121,1778973044000,-798.61,0.00029169,30]
[422473122,1778973044000,-285.69,0.00029169,30]
[422473124,1778973044000,-447.70527125,0.00035,2]
[422473126,1778973044000,-8943.78386462,0.00035,2]
[422473125,1778973044000,-8947.21879473,0.00035,2]
[422473127,1778973044000,-9077.54866152,0.00035,2]
[422473129,1778973044000,-798.69,0.00029232,7]
[422473128,1778973044000,-285.69,0.00029201,2]
[422473130,1778973044000,-285.87,0.00029232,7]
[422473132,1778973044000,-7241.33532717,0.00035,2]
[422473131,1778973044000,-1820.55885232,0.00035,2]
[422473093,1778973044000,-200.0,0.00034796,2]
[422473118,1778973044000,-285.69,0.00029105,2]
[422473113,1778973044000,-798.61,0.00029042,7]
[422473123,1778973044000,-798.61,0.00029201,2]
[422473112,1778973044000,-285.69,0.0002901,2]
[422473092,1778973044000,-200.0,0.00034796,2]
[422473114,1778973044000,-285.69,0.00029042,7]
[422473090,1778973044000,-200.0,0.00034796,2]
[422473098,1778973044000,-500.0,0.0003484,120]
[422473099,1778973044000,-430.0,0.0003484,120]
[422473101,1778973044000,-159.28,0.00034932,30]
[422473100,1778973044000,-2000.0,0.0003484,120]
[422473102,1778973044000,-1000.0,0.00034997,70]
[422473097,1778973044000,-500.0,0.0003484,120]
[422473104,1778973044000,-1950.2891859,0.00035,2]
[422473105,1778973044000,-1000.0,0.00035,90]
[422473106,1778973044000,-39959.32482453,0.00035,2]
[422473107,1778973044000,-200.552298,0.00025,2]
[422473108,1778973044000,-285.69,0.00028915,2]
[422473109,1778973044000,-285.69,0.00028947,7]
[422473103,1778973044000,-172081.98636019,0.00035,4]
[422473111,1778973044000,-798.61,0.0002901,2]
[422473110,1778973044000,-285.69,0.00028979,30]
[422473161,1778973045000,-150.0,0.00035899,2]
[422473166,1778973045000,-450.0,0.00035915,2]
[422473167,1778973045000,-450.0,0.00035915,2]